Cogmind - Beta 16 @@@ ROGUE MODE // 2025.11.12 @ 17:56:53 Player: guru-sr Result: Destroyed by J0-Q80(R) with Subdweller Machine Gun Performance ------------- Evolutions (0) 0 Regions Visited (2) 400 Robots Destroyed (33) 165 Value Destroyed (693) 693 Prototype IDs (2) 40 Alien Tech Used (0) 0 Bonus (-64) -64 TOTAL SCORE: 1234 Bonus ------- Friendly Fire -64 Cogmind --------- Core Integrity 0/250 Matter 202/300 Energy 100/100 System Corruption 0% Temperature Cool (0) Movement Core (400) Ox7 Location -10/Subcaves Parts ------- > --- POWER (1) -------- (None) > --- PROPULSION (2) --- Light Treads > --- UTILITY (2) ------ Large Storage Unit > --- WEAPON (2) ------- Particle Gun > --- INVENTORY (15) --- Subdweller Optics Sensor Array Signal Interpreter Makeshift Terrain Scanner Makeshift Terrain Scan Processor Targeting Computer Targeting Computer ECM Suite Utility Shielding Spread Laser Spread Laser Subdweller Machine Gun Subdweller Machine Gun Subdweller Shrapnel Launcher Piercing Trap Peak State ------------ > --- POWER ------------ Makeshift Power Source > --- PROPULSION ------- Light Treads Light Treads > --- UTILITY ---------- Large Storage Unit Makeshift Terrain Scanner > --- WEAPON ----------- Spread Laser Subdweller Machine Gun > --- INVENTORY -------- Improved Ion Engine Light Treads Improved Heat Sink Sensor Array Signal Interpreter Signal Interpreter Targeting Computer Targeting Computer ECM Suite ECM Suite Utility Shielding Particle Gun Spread Laser Subdweller Machine Gun Mining Laser [Rating: 20] Favorites ----------- Power Improved Ion Engine Engine Improved Ion Engine Propulsion Light Treads Treads Light Treads Wheel Wheel Utility Large Storage Unit Device Makeshift Terrain Scanner Storage Large Storage Unit Processor Targeting Computer Weapon Particle Gun Energy Gun Particle Gun Ballistic Gun Light Assault Rifle Ballistic Cannon Light Cannon Special Weapon Mining Laser Build | -11 -10 -10 ------- Run | Yrd Mat Sub Slots Evolved . | . . . Power . | . . . Propulsion . | . . . Utility . | . . . Weapon . | . . . Parts Attached 25 | 6 10 9 Power 4 | 1 1 2 Engine 4 | 1 1 2 Core . | . . . Reactor . | . . . Propulsion 4 | 2 1 1 Treads 3 | 2 1 . Leg . | . . . Wheel 1 | . . 1 Hover . | . . . Flight . | . . . Utility 6 | 1 3 2 Device 3 | . 1 2 Storage 2 | 1 1 . Processor 1 | . 1 . Hackware . | . . . Protection . | . . . Artifact . | . . . Weapon 11 | 2 5 4 Energy Gun 5 | 1 3 1 Energy Cannon . | . . . Ballistic Gun 4 | 1 . 3 Ballistic Cannon 1 | . 1 . Launcher . | . . . Special Weapon 1 | . 1 . Impact Weapon . | . . . Slashing Weapon . | . . . Piercing Weapon . | . . . Special Melee Weapon . | . . . Unidentified Prototypes . | . . . Parts Lost 7 | . . 7 Power 2 | . . 2 Propulsion 3 | . . 3 Utility 1 | . . 1 Weapon 1 | . . 1 Highest Loss Streak 3 | . . 3 To Critical Strikes . | . . . Average Backups 10 | 3 9 14 Power . | . . . Propulsion . | . . . Utility 6 | . 5 9 Weapon 2 | . 2 4 Tool/Special . | . . . Unused Backups 18 | . 7 11 Power 1 | . 1 . Propulsion 2 | . 2 . Utility 12 | . 2 10 Weapon 2 | . 1 1 Tool/Special 1 | . 1 . Average Slot Usage (%) 99 | . 99 98 Engine 13 | . 14 13 Treads 27 | . 28 27 Device 5 | . . 13 Storage 13 | . 13 14 Processor 8 | . 13 . Energy Gun 14 | . 14 15 Ballistic Gun 9 | . 8 10 Ballistic Cannon 1 | . 2 . Special Weapon 2 | . 2 1 Peak Build Rating 20 | 6 12 20 Average Rating 12 | 5 9 17 On Entrance 5 | . 6 11 Avg Prop Armor Cover (%) 13 | . . 13 Naked Turns . | . . . Heaviest Build 35 | 11 33 35 Greatest Support 40 | 40 40 40 Greatest Overweight (x) 7 | . . 7 Average Overweight (x) . | . . . Largest Inventory Capacity 15 | 8 15 15 Average Capacity 12 | 7 11 15 Most Carried 15 | 5 15 15 Average Carried 10 | 3 9 14 Final Capacity 15 | 8 15 15 Final Carried 15 | 5 15 15 Class Distribution -------------------- 68% | Mutant 31% | Scavenger-Mutant Dominant Class ---------------- Mutant | -10/Materials Scavenger-Mutant | -10/Subcaves Resources | -11 -10 -10 ----------- Run | Yrd Mat Sub Matter Collected 1119 | 269 412 438 Remotely . | . . . Salvage Created 696 | 99 312 285 Parts 52 | 9 22 21 Haulers Intercepted 1 | . 1 . Recyclers Shooed . | . . . Parts Field Recycled . | . . . Retrieved Matter . | . . . Parts Self-Destructed 3 | . . 3 Prevented . | . . . Parts Restored . | . . . Kills | -11 -10 -10 ------- Run | Yrd Mat Sub Combat Hostiles Destroyed 19 | . 10 9 Guns 18 | . 9 9 Cannons 1 | . 1 . Classes Destroyed 10 | 1 6 3 Worker 2 | . 2 . Tunneler 5 | 5 . . Hauler 1 | . 1 . Mechanic 1 | . 1 . Watcher 3 | . 3 . Swarmer 6 | . 6 . Grunt 6 | . 4 2 Artisan 2 | . . 2 Subdweller 7 | . . 7 Zionite 2 | . . 2 Best Kill Streak 4 | 3 4 2 Combat Bots Only 3 | . 3 2 Max Kills in Single Turn 2 | 1 2 1 Gunslinging . | . . . Exploded . | . . . Melee . | . . . Uniques/NPCs Destroyed . | . . . Combat | -11 -10 -10 -------- Run | Yrd Mat Sub Hostile Shots Fired 94 | . 39 55 Missed 19 | . 9 10 Hits 75 | . 30 45 Projectile 75 | . 30 45 AOE 2 | . . 2 Damage Taken 1259 | . 282 977 Core 271 | . 48 223 Absorbed by Shields . | . . . Regen/Repaired (Parts) 71 | . 71 . Core Remaining (%) 100 | 100 . . Volleys Fired 99 | 9 50 40 Largest 2 | 2 2 2 Hottest 165 | 70 165 130 Shots Fired 171 | 18 83 70 Gun 140 | 18 62 60 Cannon 4 | . 4 . Launcher . | . . . Special 27 | . 17 10 Kinetic 30 | 9 17 4 Thermal 141 | 9 66 66 Explosive . | . . . Electromagnetic . | . . . Robot Hit Streak 17 | 4 14 17 Robot Miss Streak 9 | 2 9 3 Penetration Max . | . . . Secondary Targets 1 | . . 1 Max Gunslinging Chain 1 | . . 1 Shots Hit Robots 113 | 11 49 53 Core Hits 127 | 6 56 65 Critical Kills . | . . . Critical Parts Destroyed . | . . . Critical Strikes 5 | 3 1 1 Burn 5 | 3 1 1 Melee Attacks . | . . . Impact . | . . . Slashing . | . . . Piercing . | . . . Sneak Attacks . | . . . Combat Hostiles . | . . . Follow-up Attacks . | . . . Damage Inflicted 1760 | 135 726 899 Guns 1695 | 135 685 875 Cannons 17 | . 17 . Explosions . | . . . Melee . | . . . Ramming . | . . . Kinetic 149 | 35 77 37 Thermal 1611 | 100 649 862 Explosive . | . . . Electromagnetic . | . . . Impact . | . . . Slashing . | . . . Piercing . | . . . Highest Corruption . | . . . Average Corruption . | . . . Corruption Purged . | . . . Corruption Blocked . | . . . Overload Shots . | . . . Overflow Damage . | . . . Projectiles . | . . . Explosions . | . . . Melee . | . . . Knockbacks . | . . . Impact . | . . . Kinetic . | . . . Secondary . | . . . Self-Inflicted Damage . | . . . Shots . | . . . Rammed . | . . . Targets Rammed . | . . . Kicked . | . . . Crushed . | . . . Highest Temperature 504 | 60 504 22 Average Temperature 73 | 24 80 10 Received Heat Transfer 213 | . 75 138 Effects 2 | . 2 . Shutdowns 1 | . 1 . Matter Decay 1 | . 1 . Siege Activations . | . . . Martial Activations . | . . . Shielding Activations . | . . . Robots Disrupted . | . . . Combat Hostiles . | . . . Robots Corrupted . | . . . Combat Hostiles . | . . . Parts Fried . | . . . Impact Corruptions . | . . . Robots Melted . | . . . Combat Hostiles . | . . . Parts Melted 2 | 1 1 . Heat Transferred 2917 | 518 1113 1286 Parts Sabotaged . | . . . Parts Stolen . | . . . Parts Stripped . | . . . Power Chain Reactions . | . . . Alert | -11 -10 -10 ------- Run | Yrd Mat Sub Maximum Alert Level . | . . . Low Security (%) 100 | 100 100 . Level 1 . | . . . Level 2 . | . . . Level 3 . | . . . Level 4 . | . . . Level 5 . | . . . High Security . | . . . Max Security . | . . . Peak Influence 77 | 10 77 . Initial . | . . . Average 12 | 1 14 . Influence Increases 445 | 25 370 50 Destroy 0b10 Robot/C 240 | . 200 40 Destroy 0b10 Robot/NC 60 | 25 35 . Destroy Leader 58 | . 48 10 Successful Hack 41 | . 41 . Disable Machine 15 | . 15 . Destroy Structure 16 | . 16 . Lose Combat Pursuer 15 | . 15 . Influence Decreases 445 | 25 302 118 Entered New Map 33 | . . 33 Time Decay 412 | 25 302 85 Squads Dispatched . | . . . Investigation . | . . . Extermination . | . . . Reinforcement . | . . . Assault . | . . . Garrison . | . . . Intercept . | . . . Searches Triggered . | . . . Construction Impeded . | . . . Haulers Reinforced . | . . . Active Scanning Responses . | . . . Cargo Convoy Interrupts . | . . . Stealth | -11 -10 -10 --------- Run | Yrd Mat Sub Distress Signals . | . . . Communications Jammed . | . . . Distress Signals . | . . . Times Spotted 30 | . 16 14 Peak Tracking Total 3 | . 3 3 Tactical Retreats 1 | . 1 . Traps | -11 -10 -10 ------- Run | Yrd Mat Sub Traps Triggered . | . . . Indirectly . | . . . Trap Hack Attempts . | . . . Triggered . | . . . Disarmed . | . . . Reprogrammed . | . . . Reused . | . . . Traps Extracted . | . . . Installed . | . . . Triggered . | . . . Most Traps Carried 1 | . . 1 Machines | -11 -10 -10 ---------- Run | Yrd Mat Sub Machines Disabled 1 | . 1 . Max in Single Turn 1 | . 1 . Machines Repaired . | . . . Machines Dismantled . | . . . Machines Sabotaged . | . . . Overloaded Fab Kills . | . . . Hacking | -11 -10 -10 --------- Run | Yrd Mat Sub Machines Accessed 11 | . 11 . Terminals 8 | . 8 . Fabricators . | . . . Repair Stations 1 | . 1 . Recycling Units 2 | . 2 . Scanalyzers . | . . . Garrison Access . | . . . Total Hacks 28 | . 28 . Successful 16 | . 16 . Failed 12 | . 12 . Catastrophic 3 | . 3 . Database Lockouts . | . . . Manual 13 | . 13 . Terminals 16 | . 16 . Fabricators . | . . . Repair Stations 5 | . 5 . Recycling Units 7 | . 7 . Scanalyzers . | . . . Garrison Access . | . . . Terminal Hacks 6 | . 6 . Robot Analysis 1 | . 1 . Prototype ID Bank 1 | . 1 . Terminal Index 1 | . 1 . Recycling Unit Index 1 | . 1 . Locate Traps 2 | . 2 . Fabricator Hacks . | . . . Repair Station Hacks 5 | . 5 . Scan Component 3 | . 3 . Repair 2 | . 2 . Recycling Unit Hacks 2 | . 2 . Report Inventory 2 | . 2 . Scanalyzer . | . . . Garrison Access Hacks . | . . . Unauthorized Hacks 3 | . 3 . Terminals 2 | . 2 . Botnet 2 | . 2 . Fabricators . | . . . Repair Stations . | . . . Recycling Units 1 | . 1 . Recyclers 1 | . 1 . Scanalyzers . | . . . Garrison Access . | . . . Data Cores Recovered . | . . . Used . | . . . Hacking Detections 11 | . 11 . Full Trace Events 1 | . 1 . Feedback Events . | . . . Feedback Blocked . | . . . Robot Schematics Acquired . | . . . Robots Built . | . . . Authchips . | . . . Time . | . . . Total Robot Build Rating . | . . . Part Schematics Acquired . | . . . Parts Built . | . . . Authchips . | . . . Time . | . . . Total Part Build Rating . | . . . Part Studies Acquired . | . . . Parts Repaired 2 | . 2 . Time 58 | . 58 . Parts Recycled . | . . . Recycled Matter . | . . . Retrieved Matter . | . . . Retrieved Components . | . . . Parts Scanalyzed . | . . . Part Schematics Acquired . | . . . Parts Damaged . | . . . Bothacking | -11 -10 -10 ------------ Run | Yrd Mat Sub Used RIF Installer . | . . . Robots Hacked . | . . . Non-combat . | . . . Combat . | . . . Robot Hacks Applied . | . . . Relay Couplers Released . | . . . Fabnet Peak Effective % . | . . . Robots Rewired . | . . . Allies Hacked . | . . . Hacks Repelled . | . . . Allies | -11 -10 -10 -------- Run | Yrd Mat Sub Total Allies . | . . . Largest Group . | . . . Highest-Rated Group . | . . . Highest-Rated Ally . | . . . Total Orders . | . . . Ally Attacks . | . . . Total Damage . | . . . Kills . | . . . Allies Corrupted . | . . . Allies Melted . | . . . Intel | -11 -10 -10 ------- Run | Yrd Mat Sub Active Infowar (turns) 764 | . . 764 Terrain 764 | . . 764 Robot Analysis Total 1 | . 1 . Derelict Logs Recovered . | . . . Drone Launches . | . . . Drone Recoveries . | . . . Exploration | -11 -10 -10 ------------- Run | Yrd Mat Sub Turns Passed 2600 | 212 1400 988 Spaces Moved 1269 | 107 687 475 Core 8 | 7 . 1 Treads 1228 | 100 687 441 Legs . | . . . Wheels 33 | . . 33 Hover . | . . . Flight . | . . . Fastest Speed 50 | 50 160 125 Average Speed 158 | 152 160 158 Slowest Speed 400 | 160 160 400 Overloaded Moves . | . . . Propulsion Burnouts . | . . . Robots Hopped . | . . . Potential Cave-ins . | . . . Cave-ins Triggered . | . . . Exploration Rate (%) 42 | 4 96 27 Regions Visited 2 Branch Regions 1 Pre-discovered Areas 1 | . . 1 Known Exits Taken . | . . . Unknown Exits Taken 2 | 1 1 . Scrap Searched 3 | . . 3 Spaces Dug 15 | . 15 . Terrain Destroyed 15 | . 15 . Melee . | . . . Projectile 15 | . 15 . AOE . | . . . Terrain Rammed . | . . . Walls Destroyed . | . . . Machines Disabled . | . . . Actions | -11 -10 -10 --------- Run | Yrd Mat Sub Total 1603 | 136 863 604 Wait 86 | 10 53 23 Move 1267 | 106 686 475 Hop . | . . . Pick Up 36 | 5 25 6 Fast Attach 9 | 6 1 2 Attach 6 | . 2 4 Detach . | . . . Swap 81 | . 34 47 Drop 19 | . 12 7 Fire 99 | 9 50 40 Melee . | . . . Ram . | . . . Kick . | . . . Crush . | . . . Escape Stasis . | . . . Rewire . | . . . Trap . | . . . Miscellaneous . | . . . Route ------- -11/Scrapyard -10/Materials (discovered 5 exits: [*Mat x3] / [*Min] / [*Sub]) -10/Subcaves (discovered 1 exit: [*Mat]) History --------- Turn | Location | Event 10 | -11/Scrapyard | Discovered new exit (range 15) 213 | -11/Scrapyard | Entered Materials 332 | -10/Materials | Build established: Mutant 449 | -10/Materials | Discovered new exit (range 12) 658 | -10/Materials | Discovered new exit (range 14) 920 | -10/Materials | Discovered new exit (range 16) 1098 | -10/Materials | Discovered new exit (range 10) 1128 | -10/Materials | Repaired Lgt. Treads? 1177 | -10/Materials | Repaired Particle Gun 1578 | -10/Materials | Discovered new exit (range 7) 1613 | -10/Materials | Entered Subcaves 1694 | -10/Subcaves | Learned location of Zion (-7) 1694 | -10/Subcaves | Met a Zionite searching for "candidates" 1775 | -10/Subcaves | Ambushed by Subdweller buried in earth 1847 | -10/Subcaves | Core integrity fell below 50% 2114 | -10/Subcaves | Build established: Scavenger-Mutant 2387 | -10/Subcaves | Ambushed by angry Subdweller bent on revenge 2393 | -10/Subcaves | Core integrity fell below 20% 2559 | -10/Subcaves | Discovered new exit (range 12) 2593 | -10/Subcaves | Disturbed a concealed Subdweller 2601 | -10/Subcaves | Destroyed by J0-Q80(R) with Subdweller Machine Gun Last Messages --------------- 02552_ Acquired 32 matter. 02559_ EXIT=FOUND 02583_ Searching scrap... 02583_ Found Barrage Gun. 02583_ Found 58 Matter. 02584_ Acquired 58 matter. 02584_ Searching scrap... 02584_ Found Sub. Laser. 02584_ Found 36 Matter. 02585_ Acquired 36 matter. 02585_ Searching scrap... 02585_ Found Piercing Trap. 02585_ Found 36 Matter. 02586_ Acquired 36 matter. 02588_ Acquired Piercing Trap. 02593_ 7C-KRF(R) angrily emerges from the Twisted Machinery. 02596_ Mining Laser destroyed. 02597_ Imp. Ion Engine destroyed. 02598_ Wheel destroyed. Map ----- +----------------------------------------------------+ | ?????????????????????????????????????????????????? | | ?????????????????????????????????????????????????? | | ???????????????????????????????????????????????? ? | | ?????????????????????????????????????????????????? | | ?????????????????????????????????????????????????? | | ?????????????????????????????????????????????????? | | ?????????????????????????????????????????????????? | | ?????????????????????????????????????????????????? | | ???????????????????????????????????????????? ????? | | ??????????????????????????????????????? ?????????? | | ???????????????????????????????????????? ????????? | | ????????????????????????????????????????????#""##? | | ???????????????????????????????????????????#" #? | | ????????????????????????????????????????### #?# | | ???????????????????????????????????????## # #?# | | ??????????????????????????????????????## #?# | | ?????????????????????????????????????## """ ### | | ??????????????????????????????###????# """"##" | | ?????????????????????????????## ###### #?#"" | | ????????????????????????????## ### #??#"" | | ???????????????????????????## ##?#" | | ???????????????????????????# #??#" | | ??????????????????????###### < ### " ####### | | ?????????????????????##& <## #?#" ##""" | | ?????????????????????#"&#R#< #?## | | ?????????????????????#[[#@R #?# # | | ?????????????????????# "# #< R ## ## | | ?????????????????????# #### #" ### | | ?????????????????????###??## ##### ###? | | ???????????????????????????# ###????"" "#??? | | ??????????????????????????? #??????" ##?#? | | ??????????????????????????### #?????? * #???? | | ????????????????????????????## ????? #???? | | ?????????????????????????????# ??? "#???? | | ?????????????????????????????# # ???# #????? | | ????????????????????????????? # ???#### #????# | | ????????????????????????????? ???????# ????? | | ?????????????????????????????# ## ?????? ????? | | ??????????????????????????????#?? ??????? #????? | | ????????????????????????????????????????? # ????? | | ????????????????????????????????????????? ?#????? | | ?????????????????????????????????????????%#??????? | | ?????????????????????????????????????????????????? | | ?????????????????????????????????????????????????? | | ?????????????????????????????????????????????????? | | ?????????????????????????????????????????????????? | | ?????????????????????????????????????????????????? | | ?????????????????????????????????????????????????? | | ?????????????????????????????????????????????????? | | ?????????????????????????????????????????????????? | +----------------------------------------------------+ Best States ------------- Heat Dissipation 39 Energy Generation 15 Energy Capacity 265 Matter Stores 300 Matter Capacity 300 Sight Range 16 Terrain Scan Range 18 Terrain Scan Density 10 Evasion (%) 50 Targeting Accuracy 5 Recoil Reduction 2 Item Schematics ----------------- None Robot Schematics ------------------ None Fabricated ------------ Nothing Repaired ---------- Lgt. Treads | 70% | -10/Materials Particle Gun | 60% | -10/Materials Studied --------- None Alien Tech Used ----------------- None Achievements -------------- Well Done Challenges ------------ None Game ------ Seed HardcellCloakingBroadsword Manual? 0 Play Time 00:38:42 Cumulative 10.2 hours Start 2025.11.12 @ 17:17:50 End 2025.11.12 @ 17:56:53 Sessions 1 Manual Loads 0 Difficulty Rogue Special Mode None Game No. 8 Rogue 8 Adventurer 0 Explorer 0 Win Type - Total 1 Types 1/0/0/0/0/0/0/0/0/0 Lore% 6 Gallery% 13 Achievement% 23 Wizard Run 0 Options --------- Layout 1 ASCII 0 Keyboard 0 Movement Mouse Keybinds 0 Fullscreen 1 Font 24/Smallcaps Map View 50x35 Zoom Use 0% Tactical HUD 1 Map Filters NONE Filters NONE Steam 1 RUN: a9534f0b-498c-46e9-9bc7-fdcc55305d77